Cogmind - Beta 14 *** ADVENTURER MODE // 2024.08.31 @ 02:04:10 Player: DAKKAKRUMPA Result: Destroyed by 8R-AWN with 8R-AWN's Boregun Performance ------------- Evolutions (0) 0 Regions Visited (3) 600 Robots Destroyed (22) 110 Value Destroyed (402) 402 Prototype IDs (0) 0 Alien Tech Used (0) 0 Bonus (-13) -13 TOTAL SCORE: 1099 Bonus ------- Friendly Fire -13 Cogmind --------- Core Integrity 0/250 Matter 278/300 Energy 100/100 System Corruption 0% Temperature Cool (0) Movement Core (50) Location -10/Exiles Parts ------- > --- POWER (1) -------- (None) > --- PROPULSION (2) --- (None) > --- UTILITY (2) ------ Signal Interpreter > --- WEAPON (2) ------- (None) > --- INVENTORY (5) ---- Light Ion Engine Power Shielding Thief Drone Bay Makeshift Shrapnel Gun Light Cannon Peak State ------------ > --- POWER ------------ Light Ion Engine > --- PROPULSION ------- Light Treads Light Treads > --- UTILITY ---------- Small Storage Unit Signal Interpreter > --- WEAPON ----------- Assault Rifle Light Cannon > --- INVENTORY -------- Power Shielding Thief Drone Bay Makeshift Shrapnel Gun [Rating: 8] Favorites ----------- Power Light Ion Engine Engine Light Ion Engine Propulsion Light Treads Treads Light Treads Utility Small Storage Unit Storage Small Storage Unit Processor Signal Interpreter Protection Power Shielding Weapon Assault Rifle Energy Gun EM Pulse Gun Ballistic Gun Assault Rifle Ballistic Cannon Light Cannon Special Weapon Mining Laser Build | -11 -10 -10 -10 ------- Run | Yrd Mat Min Exi Slots Evolved . | . . . . Power . | . . . . Propulsion . | . . . . Utility . | . . . . Weapon . | . . . . Parts Attached 13 | 5 6 2 . Power 2 | 1 . 1 . Engine 2 | 1 . 1 . Core . | . . . . Reactor . | . . . . Propulsion 3 | 2 1 . . Treads 3 | 2 1 . . Leg . | . . . . Wheel . | . . . . Hover . | . . . . Flight . | . . . . Utility 3 | 1 2 . . Device . | . . . . Storage 1 | 1 . . . Processor 1 | . 1 . . Hackware . | . . . . Protection 1 | . 1 . . Artifact . | . . . . Weapon 5 | 1 3 1 . Energy Gun 1 | . 1 . . Energy Cannon . | . . . . Ballistic Gun 2 | 1 1 . . Ballistic Cannon 1 | . 1 . . Launcher . | . . . . Special Weapon 1 | . . 1 . Impact Weapon . | . . . . Slashing Weapon . | . . . . Piercing Weapon . | . . . . Special Melee Weapon . | . . . . Unidentified Prototypes . | . . . . Parts Lost 6 | . . . 6 Power 1 | . . . 1 Propulsion 2 | . . . 2 Utility 1 | . . . 1 Weapon 2 | . . . 2 Highest Loss Streak 6 | . . . 6 To Critical Strikes . | . . . . Average Slot Usage (%) 98 | . 96 100 98 Engine 13 | . 14 14 13 Treads 27 | . 27 28 27 Storage 13 | . 14 14 13 Processor 12 | . 9 14 14 Energy Gun 1 | . 2 . . Ballistic Gun 16 | . 20 14 13 Ballistic Cannon 5 | . 3 12 . Special Weapon 5 | . . 1 13 Peak Build Rating 8 | 5 7 8 8 Average Rating 7 | 3 6 7 7 On Entrance 5 | . 5 7 8 Naked Turns . | . . . . Heaviest Build 13 | 10 13 13 11 Greatest Support 40 | 40 40 40 40 Greatest Overweight (x) . | . . . . Average Overweight (x) . | . . . . Largest Inventory Capacity 8 | 8 8 8 8 Average Capacity 7 | 6 8 8 7 Most Carried 5 | 3 2 5 5 Average Carried 2 | . . 3 5 Final Capacity 8 | 8 8 8 5 Final Carried 5 | 1 1 5 5 Class Distribution -------------------- 100% | Mutant Dominant Class ---------------- Mutant | -10/Materials Mutant | -10/Mines Mutant | -10/Exiles Resources | -11 -10 -10 -10 ----------- Run | Yrd Mat Min Exi Matter Collected 504 | 131 200 173 . Remotely . | . . . . Salvage Created 461 | . 236 225 . Parts 43 | . 18 25 . Haulers Intercepted . | . . . . Recyclers Shooed 1 | . 1 . . Parts Field Recycled . | . . . . Retrieved Matter . | . . . . Parts Self-Destructed . | . . . . Prevented . | . . . . Kills | -11 -10 -10 -10 ------- Run | Yrd Mat Min Exi Combat Hostiles Destroyed 19 | . 7 12 . Melee 4 | . 2 2 . Guns 12 | . 5 7 . Cannons 3 | . . 3 . Classes Destroyed 6 | . 4 2 . Worker 1 | . 1 . . Recycler 1 | . . 1 . Watcher 2 | . 2 . . Swarmer 12 | . 3 9 . Grunt 6 | . 4 2 . Assembled 1 | . . 1 . Best Kill Streak 3 | . 3 3 . Combat Bots Only 3 | . 3 3 . Max Kills in Single Turn 1 | . 1 1 . Gunslinging . | . . . . Exploded . | . . . . Melee 1 | . 1 1 . Uniques/NPCs Destroyed . | . . . . Combat | -11 -10 -10 -10 -------- Run | Yrd Mat Min Exi Hostile Shots Fired 116 | . 33 38 45 Missed 32 | . 8 14 10 Damage Taken 963 | . 227 254 482 Core 254 | . 58 74 122 Absorbed by Shields . | . . . . Ignored by Resistances 285 | . 69 75 141 Core Remaining (%) 100 | 100 . . . Volleys Fired 52 | . 21 28 3 Largest 2 | . 2 2 2 Hottest 120 | . 60 120 120 Shots Fired 102 | . 42 56 4 Gun 73 | . 42 28 3 Cannon 17 | . . 17 . Launcher . | . . . . Special 12 | . . 11 1 Kinetic 82 | . 34 45 3 Thermal 12 | . . 11 1 Explosive . | . . . . Electromagnetic 8 | . 8 . . Robot Hit Streak 14 | . 7 14 6 Robot Miss Streak 2 | . 2 2 1 Penetration Max . | . . . . Secondary Targets 1 | . 1 . . Max Gunslinging Chain 1 | . 1 . . Shots Hit Robots 57 | . 27 27 3 Core Hits 29 | . 13 14 2 Critical Kills 1 | . . 1 . Critical Parts Destroyed . | . . . . Critical Strikes 2 | . . 2 . Destroy 1 | . . 1 . Blast 1 | . . 1 . Melee Attacks . | . . . . Impact . | . . . . Slashing . | . . . . Piercing . | . . . . Sneak Attacks . | . . . . Combat Hostiles . | . . . . Follow-up Attacks . | . . . . Damage Inflicted 880 | . 396 425 59 Guns 614 | . 380 199 35 Cannons 138 | . . 138 . Explosions . | . . . . Melee . | . . . . Ramming 32 | . 16 16 . Kinetic 637 | . 265 337 35 Thermal 96 | . . 72 24 Explosive . | . . . . Electromagnetic 115 | . 115 . . Impact . | . . . . Slashing . | . . . . Piercing . | . . . . Highest Corruption . | . . . . Average Corruption . | . . . . Corruption Purged . | . . . . Corruption Blocked . | . . . . Overload Shots . | . . . . Overflow Damage 8 | . . 8 . Projectiles 8 | . . 8 . Explosions . | . . . . Melee . | . . . . Knockbacks 6 | . . 6 . Impact . | . . . . Kinetic 6 | . . 6 . Secondary . | . . . . Self-Inflicted Damage . | . . . . Shots . | . . . . Rammed 10 | . 6 4 . Targets Rammed 14 | . 8 6 . Kicked . | . . . . Crushed 4 | . 2 2 . Highest Temperature 62 | . 27 62 46 Average Temperature 21 | . 7 21 28 Received Heat Transfer 272 | . 144 48 80 Siege Activations . | . . . . Robots Corrupted . | . . . . Combat Hostiles . | . . . . Parts Fried 1 | . 1 . . Impact Corruptions . | . . . . Robots Melted . | . . . . Combat Hostiles . | . . . . Parts Melted . | . . . . Heat Transferred 200 | . . 150 50 Parts Sabotaged . | . . . . Parts Stolen . | . . . . Parts Stripped . | . . . . Power Chain Reactions . | . . . . Alert | -11 -10 -10 -10 ------- Run | Yrd Mat Min Exi Peak Influence 172 | . 164 172 . Initial . | . . . . Average 75 | . 60 99 . Maximum Alert Level . | . . . . Low Security (%) 100 | 100 100 100 . Level 1 . | . . . . Level 2 . | . . . . Level 3 . | . . . . Level 4 . | . . . . Level 5 . | . . . . High Security . | . . . . Max Security . | . . . . Squads Dispatched . | . . . . Investigation . | . . . . Extermination . | . . . . Reinforcement . | . . . . Assault . | . . . . Garrison . | . . . . Intercept . | . . . . Searches Triggered . | . . . . Construction Impeded . | . . . . Haulers Reinforced . | . . . . Active Scanning Responses . | . . . . Cargo Convoy Interrupts . | . . . . Stealth | -11 -10 -10 -10 --------- Run | Yrd Mat Min Exi Distress Signals . | . . . . Communications Jammed . | . . . . Distress Signals . | . . . . Times Spotted 32 | . 11 12 9 Peak Tracking Total 10 | . 3 4 10 Tactical Retreats 3 | . 1 2 . Traps | -11 -10 -10 -10 ------- Run | Yrd Mat Min Exi Traps Triggered 1 | . 1 . . Indirectly . | . . . . Trap Hack Attempts . | . . . . Triggered . | . . . . Disarmed . | . . . . Reprogrammed . | . . . . Reused . | . . . . Traps Extracted . | . . . . Installed . | . . . . Triggered . | . . . . Machines | -11 -10 -10 -10 ---------- Run | Yrd Mat Min Exi Machines Disabled . | . . . . Max in Single Turn . | . . . . Machines Repaired . | . . . . Machines Dismantled . | . . . . Machines Sabotaged . | . . . . Overloaded Fab Kills . | . . . . Hacking | -11 -10 -10 -10 --------- Run | Yrd Mat Min Exi Machines Accessed 6 | . 2 1 3 Terminals 1 | . 1 . . Fabricators . | . . . . Repair Stations . | . . . . Recycling Units 1 | . 1 . . Scanalyzers . | . . . . Garrison Access . | . . . . Total Hacks 47 | . 6 1 40 Successful 42 | . 1 1 40 Failed 5 | . 5 . . Catastrophic . | . . . . Database Lockouts . | . . . . Manual 1 | . . . 1 Terminals 4 | . 4 . . Fabricators . | . . . . Repair Stations . | . . . . Recycling Units 2 | . 2 . . Scanalyzers . | . . . . Garrison Access . | . . . . Terminal Hacks 42 | . 1 1 40 Record 40 | . . . 40 Open Door 1 | . . 1 . Unreport Threat 1 | . 1 . . Fabricator Hacks . | . . . . Repair Station Hacks . | . . . . Recycling Unit Hacks . | . . . . Scanalyzer . | . . . . Garrison Access Hacks . | . . . . Unauthorized Hacks . | . . . . Terminals . | . . . . Fabricators . | . . . . Repair Stations . | . . . . Recycling Units . | . . . . Scanalyzers . | . . . . Garrison Access . | . . . . Data Cores Recovered . | . . . . Used . | . . . . Hacking Detections 2 | . 2 . . Full Trace Events . | . . . . Feedback Events . | . . . . Feedback Blocked . | . . . . Robot Schematics Acquired . | . . . . Robots Built . | . . . . Authchips . | . . . . Time . | . . . . Total Robot Build Rating . | . . . . Part Schematics Acquired . | . . . . Parts Built . | . . . . Authchips . | . . . . Time . | . . . . Total Part Build Rating . | . . . . Parts Repaired . | . . . . Time . | . . . . Parts Recycled . | . . . . Recycled Matter . | . . . . Retrieved Matter . | . . . . Retrieved Components . | . . . . Parts Scanalyzed . | . . . . Part Schematics Acquired . | . . . . Parts Damaged . | . . . . Bothacking | -11 -10 -10 -10 ------------ Run | Yrd Mat Min Exi Used RIF Installer . | . . . . Robots Hacked . | . . . . Non-combat . | . . . . Combat . | . . . . Robot Hacks Applied . | . . . . Relay Couplers Released . | . . . . Fabnet Peak Effective % . | . . . . Robots Rewired . | . . . . Allies Hacked . | . . . . Hacks Repelled . | . . . . Allies | -11 -10 -10 -10 -------- Run | Yrd Mat Min Exi Total Allies 3 | . . 3 . Largest Group 3 | . . 3 1 Highest-Rated Group 69 | . . 69 31 Highest-Rated Ally 31 | . . 31 31 Total Orders . | . . . . Ally Attacks . | . . . . Total Damage . | . . . . Kills . | . . . . Allies Corrupted . | . . . . Allies Melted . | . . . . Intel | -11 -10 -10 -10 ------- Run | Yrd Mat Min Exi Robot Analysis Total . | . . . . Derelict Logs Recovered 2 | . . 2 . Drone Launches . | . . . . Drone Recoveries . | . . . . Exploration | -11 -10 -10 -10 ------------- Run | Yrd Mat Min Exi Turns Passed 2422 | 49 871 727 775 Spaces Moved 1345 | 29 482 359 475 Core 7 | 7 . . . Treads 1338 | 22 482 359 475 Legs . | . . . . Wheels . | . . . . Hover . | . . . . Flight . | . . . . Fastest Speed 50 | 50 160 160 160 Average Speed 159 | 133 160 160 160 Slowest Speed 160 | 160 160 160 160 Overloaded Moves . | . . . . Propulsion Burnouts . | . . . . Robots Hopped . | . . . . Cave-ins Triggered . | . . . . Exploration Rate (%) 59 | 3 78 65 90 Regions Visited 3 Branch Regions 2 Pre-discovered Areas 2 | . . 1 1 Known Exits Taken 2 | . 1 1 . Unknown Exits Taken 1 | 1 . . . Scrap Searched . | . . . . Spaces Dug . | . . . . Terrain Destroyed . | . . . . Melee . | . . . . Projectile . | . . . . AOE . | . . . . Terrain Rammed . | . . . . Walls Destroyed . | . . . . Machines Disabled . | . . . . Actions | -11 -10 -10 -10 --------- Run | Yrd Mat Min Exi Total 1489 | 39 536 430 484 Wait 49 | . 13 30 6 Move 1342 | 28 481 358 475 Hop . | . . . . Pick Up 16 | 6 5 5 . Fast Attach . | . . . . Attach 10 | 5 5 . . Detach 1 | . 1 . . Swap 3 | . 1 2 . Drop 2 | . 1 1 . Fire 52 | . 21 28 3 Melee . | . . . . Ram . | . . . . Kick . | . . . . Crush 14 | . 8 6 . Escape Stasis . | . . . . Rewire . | . . . . Trap . | . . . . Miscellaneous . | . . . . Route ------- -11/Scrapyard -10/Materials (discovered 3 exits: *Mat x2 / *Min) -10/Mines (discovered 2 exits: *Mat / *Exi) -10/Exiles (discovered 2 exits: *Min x2) History --------- Turn | Location | Event 5 | -11/Scrapyard | Discovered new exit (range 15) 50 | -11/Scrapyard | Entered Materials 334 | -10/Materials | Build established: Mutant 383 | -10/Materials | Discovered new exit (range 9) 410 | -10/Materials | Identified exit to Materials 765 | -10/Materials | Discovered new exit (range 7) 777 | -10/Materials | Identified exit to Mines 822 | -10/Materials | Discovered exit to Materials (range 4) 921 | -10/Materials | Entered Mines 998 | -10/Mines | A weapon hastily lodged in a ceiling crevice suddenly fell to the ground 1114 | -10/Mines | Found the Drone Emporium 1120 | -10/Mines | Found Prototype Device 1160 | -10/Mines | Learned location of 1 exit from Materials 1282 | -10/Mines | Received a Mining Laser from a helpful Derelict 1419 | -10/Mines | Discovered exit to Materials (range 5) 1563 | -10/Mines | Excavation squad dispatched 1563 | -10/Mines | A large section of the Mines collapsed 1593 | -10/Mines | Core integrity fell below 50% 1642 | -10/Mines | Deemed a non-threat by the Exiles lab entrance 1642 | -10/Mines | Discovered new exit (range 5) 1647 | -10/Mines | Identified exit to Exiles 1648 | -10/Mines | Entered Exiles 1648 | -10/Exiles | Accompanied by 1 ally 1671 | -10/Exiles | Discovered new exit (range 15) 1678 | -10/Exiles | Led the pair of lost Derelicts to a safe place 1692 | -10/Exiles | Identified exit to Mines 1733 | -10/Exiles | Met 8R-AWN 1756 | -10/Exiles | Met EX-HEX 1804 | -10/Exiles | Met EX-BIN 1988 | -10/Exiles | Met EX-DEC 1994 | -10/Exiles | Learned location of Zion (-7) 2071 | -10/Exiles | Discovered exit to Mines (range 15) 2216 | -10/Exiles | Visited The Gauntlet 2408 | -10/Exiles | Attacked by the Exiles 2421 | -10/Exiles | Core integrity fell below 20% 2423 | -10/Exiles | Destroyed by 8R-AWN with 8R-AWN's Boregun Last Messages --------------- 02071_ EXIT=FOUND: MINES AM-PHS: That's RA-1N3's workstation, which we keep unoccupied as a tribute. RA-1N3 was always up for doing crazy stuff, the only one brave enough to try out the Chronowheel, only to never be seen again. 02408_ EXILES: Hostile robot within lab perimeter. Defensive protocols time, folks! 02409_ Machine disabled. 02413_ Lgt. Treads destroyed. 02415_ Penetrated by HV Slug. 02415_ Mining Laser destroyed. 02416_ Lgt. Ion Engine destroyed. 02417_ Penetrated by HV Slug. 02417_ Assault Rifle destroyed. 02418_ Sml. Storage Unit destroyed. 02418_ Lgt. Treads destroyed. 02421_ Penetrated by HV Slug. 02422_ Knocked back. 02423_ Penetrated by HV Slug. Map ----- +----------------------------------------------------+ | ?????#" """???????????????????????????? | | ?????#" """???????????????????????????? | | ?????#" """???????????????????????????? | | ?????## """???????????????????????????? | | ??????# """???????????????????????????? | | ??????#" "X" """???????????????????????????? | | ??????#" """ ???????????????????????????? | | ??????#" """""""""???????????????????????????? | | ?????##" #######??????????????????????????????? | | ????##"" #????????????????????????????????????? | | #####"" #????????????????????????????????????? | | """"""" ##???????????????????????????????????? | | "" " "" ##???###########????????????????????? | | "" " #####"""""""""##???????????????????? | | " " " " """"##??????????????????? | | "" " #??????????????????? | | " """#??????????????????? | | "a"#???????????#####??? | | " "##?????????##" #??? | | ""###???????#" #??? | | """""" """#??????##" ##?? | | ######""" "#????### ### | | ""##????#####""" ##???# # | | "##?????????##""" ##?## | | ##???????????#"""" ### | | #???????????##"" @ g ## | | #######??####"""" z #### | | ## ####""" aaa ""#?#""""" | | """" #"""##?###### | | a ######???????? | | a ##????????????? | | " a ##?????????????? | | " "" """ ""#??????????????? | | ""## ##""" " " ""#" a"##??????????????? | | ""#### ######""" """##"""""""##???????????????? | | """##??# #????###""""###########????????????????? | | """#??## ####???######??????????????????????????? | | ""##??#! "!#???????????????????????????????????? | | "##???#" !#???????????????????????????????????? | | ##????#" "#???????????????????????????????????? | | #?????#!!""!"#???????????????????????????????????? | | ??????########???????????????????????????????????? | | ?????????????????????????????????????????????????? | | ?????????????????????????????????????????????????? | | ?????????????????????????????????????????????????? | | ?????????????????????????????????????????????????? | | ?????????????????????????????????????????????????? | | ?????????????????????????????????????????????????? | | ?????????????????????????????????????????????????? | | ?????????????????????????????????????????????????? | +----------------------------------------------------+ Best States ------------- Heat Dissipation 25 Energy Generation 10 Energy Capacity 125 Matter Stores 300 Matter Capacity 300 Sight Range 16 Terrain Scan Density 10 Resistance: KI 20 Resistance: TH 20 Resistance: EX 20 Resistance: EM 20 Resistance: I 20 Resistance: S 20 Resistance: P 20 Power Shielding 33 Evasion (%) 40 Recoil Reduction 2 Offensive Hacking 10 Item Schematics ----------------- None Robot Schematics ------------------ None Fabricated ------------ Nothing Alien Tech Used ----------------- None Achievements -------------- None Challenges ------------ None Game ------ Seed ImprinterThermalTriangulator Manual? 0 Play Time 00:15:13 Cumulative 27.2 hours Start 2024.08.31 @ 01:51:34 End 2024.08.31 @ 02:04:10 Sessions 1 Manual Loads 0 Difficulty Adventurer Special Mode None Game No. 30 Rogue 0 Adventurer 30 Explorer 0 Win Type - Total 0 Types 0/0/0/0/0/0/0/0/0 Lore% 11 Gallery% 20 Achievement% 19 Wizard Run 0 Options --------- Layout 1 ASCII 0 Keyboard 0 Movement Numpad Keybinds 0 Fullscreen 1 Font 24/Smallcaps Map View 50x35 Zoom Use 0% Tactical HUD 1 Map Filters NONE Filters NONE Steam 1 RUN: a985c5b1-d9e2-4216-95d4-885245e59d44